fUST/lending_fUST_20250206
["ID","MTS","AMOUNT","RATE_DAILY","PERIOD"]
[351942739,1738854651325,-425.0,0.00014109,2]
[351942741,1738854651334,-500.0,0.00014109,2]
[351942743,1738854651343,-500.0,0.00014109,2]
[351942745,1738854651353,-1073.95,0.00014109,2]
[351942747,1738854651362,-1272.632916,0.00014109,2]
[351942749,1738854651371,-1272.632916,0.00014109,2]
[351942751,1738854651380,-151.0,0.00014109,2]
[351942753,1738854651389,-151.0,0.00014109,2]
[351942755,1738854651398,-2517.82,0.00014109,2]
[351942756,1738854651412,-1059.49,0.00014109,2]
[351942758,1738854651421,-10938.62,0.00014109,2]
[351942760,1738854651431,-500.0,0.00014109,2]
[351942762,1738854651441,-500.0,0.00014109,2]
[351942764,1738854651450,-624.38,0.00014109,2]
[351942766,1738854651459,-500.0,0.00014109,2]
[351942768,1738854651469,-500.0,0.00014109,2]
[351942770,1738854651479,-1694.57,0.00014109,2]
[351942772,1738854651489,-2197.75,0.00014109,2]
[351942774,1738854651499,-151.0,0.00014109,2]
[351942776,1738854651508,-151.0,0.00014109,2]
[351942778,1738854651518,-500.0,0.00014109,2]
[351942780,1738854651527,-151.0,0.00014109,2]
[351942782,1738854651536,-500.0,0.00014109,2]
[351942784,1738854651545,-500.0,0.00014109,2]
[351942786,1738854651555,-4663.5,0.00014109,2]
[351942788,1738854651564,-509.11,0.00014109,2]
[351942790,1738854651574,-500.0,0.00014109,2]
[351942792,1738854651584,-1000.0,0.00014126,2]
[351942794,1738854651594,-151.0,0.00014126,2]
[351942796,1738854651611,-151.0,0.00014126,2]
[351942798,1738854651631,-154.103974,0.00014126,2]
[351942800,1738854651642,-154.103974,0.00014126,2]
[351942802,1738854651657,-151.0,0.00014126,2]
[351942804,1738854651667,-1366.04506,0.00014126,2]
[351942806,1738854651676,-1366.04506,0.00014126,2]
[351942808,1738854651687,-425.0,0.00014126,2]
[351942810,1738854651697,-1272.632916,0.00014126,2]
[351942811,1738854651707,-425.0,0.00014126,2]
[351942813,1738854651717,-1272.632916,0.00014126,2]
[351942815,1738854651727,-1000.0,0.0001413,2]
[351942817,1738854651736,-218.59072856,0.00014141,2]
[351942819,1738854651745,-192.0,0.00014143,2]
[351942821,1738854651754,-1000.0,0.00014148,2]
[351942823,1738854651763,-500.0,0.00014173,2]
[351942825,1738854651773,-330.78308014,0.00014173,2]
[351942827,1738854651783,-500.0,0.00014173,2]
[351942829,1738854651793,-500.0,0.00014173,2]
[351942831,1738854651802,-500.0,0.00014173,2]
[351942833,1738854651811,-500.62002791,0.00014173,2]
[351942835,1738854651820,-500.0,0.00014173,2]
[351942837,1738854651829,-1000.0,0.00014189,2]
[351942839,1738854651839,-503.65398507,0.00014198,2]
[351942841,1738854651848,-290.019053,0.00014199,2]
[351942843,1738854651858,-715.14659,0.00014199,2]
[351942845,1738854651868,-715.14659,0.00014199,2]
[351942847,1738854651877,-205.427974,0.00014199,2]
[351942849,1738854651887,-205.427974,0.00014199,2]
[351942851,1738854651896,-155.299083,0.00014199,2]
[351942853,1738854651910,-151.0,0.00014199,2]
[351942855,1738854651919,-155.299083,0.00014199,2]
[351942856,1738854651929,-151.0,0.00014199,2]
[351942858,1738854651939,-372.436615,0.00014199,2]
[351942860,1738854651948,-372.436615,0.00014199,2]
[351942862,1738854651958,-600.855876,0.00014199,2]
[351942864,1738854651968,-600.855876,0.00014199,2]
[351942879,1738854652101,-151.0,0.00014199,2]
[351942881,1738854652112,-151.0,0.00014199,2]
[351942882,1738854652121,-380.665654,0.00014199,2]
[351942883,1738854652131,-380.665654,0.00014199,2]
[351942884,1738854652140,-518.744455,0.00014199,2]
[351942885,1738854652152,-518.744455,0.00014199,2]
[351942886,1738854652161,-151.0,0.00014199,2]
[351942887,1738854652170,-151.0,0.00014199,2]
[351942888,1738854652180,-453081.417317,0.000142,5]
[351942889,1738854652189,-127009.1,0.000142,5]
[351942890,1738854652199,-400.0,0.000142,2]
[351942891,1738854652208,-470.212422,0.000142,2]
[351942892,1738854652218,-1500.0,0.000142,2]
[351942893,1738854652227,-610.58054552,0.000142,2]
[351942894,1738854652236,-151.0,0.000142,2]
[351942895,1738854652246,-151.0,0.000142,2]
[351942896,1738854652255,-151.0,0.000142,2]
[351942897,1738854652264,-151.0,0.000142,2]
[351942898,1738854652274,-151.0,0.000142,2]
[351942899,1738854652283,-151.0,0.000142,2]
[351942900,1738854652292,-151.0,0.000142,2]
[351942901,1738854652301,-151.0,0.000142,2]
[351942902,1738854652310,-417.679014,0.000142,2]
[351942903,1738854652320,-417.679014,0.000142,2]
[351942904,1738854652329,-417.679014,0.000142,2]
[351942906,1738854652339,-417.679014,0.000142,2]
[351942908,1738854652349,-152.671027,0.000142,2]
[351942910,1738854652359,-1439.609364,0.000142,2]
[351942912,1738854652369,-1439.609364,0.000142,2]
[351942914,1738854652379,-1439.609364,0.000142,2]
[351942916,1738854652389,-1439.609364,0.000142,2]
[351942918,1738854652399,-151.0,0.000142,2]
[351942920,1738854652412,-151.0,0.000142,2]
[351942922,1738854652422,-151.0,0.000142,2]
[351942924,1738854652431,-151.0,0.000142,2]
[351942926,1738854652441,-151.0,0.000142,2]
[351942928,1738854652450,-151.0,0.000142,2]
[351942930,1738854652460,-500.0,0.000142,2]
[351942932,1738854652469,-500.0,0.000142,2]
[351942934,1738854652478,-500.0,0.000142,2]
[351942936,1738854652488,-500.0,0.000142,2]
[351942938,1738854652498,-500.0,0.000142,2]
[351942940,1738854652507,-500.0,0.000142,2]
[351942942,1738854652518,-500.0,0.000142,2]
[351942944,1738854652527,-500.0,0.000142,2]
[351942946,1738854652537,-500.0,0.000142,2]
[351942948,1738854652546,-500.0,0.000142,2]
[351942951,1738854652556,-500.0,0.000142,2]
[351942952,1738854652565,-500.0,0.000142,2]
[351942955,1738854652575,-500.0,0.000142,2]
[351942957,1738854652585,-521.587508,0.000142,2]
[351942958,1738854652595,-151.0,0.000142,2]
[351942961,1738854652605,-151.0,0.000142,2]
[351942963,1738854652615,-4234.231,0.000142,2]
[351942965,1738854652624,-151.0,0.000142,2]
[351942967,1738854652634,-151.0,0.000142,2]
[351942969,1738854652644,-151.0,0.000142,2]
[351942971,1738854652656,-151.0,0.000142,2]
[351942973,1738854652665,-1000.0,0.000142,2]
[351942974,1738854652675,-1000.0,0.000142,2]
[351942976,1738854652684,-155.085341,0.000142,2]
[351942978,1738854652694,-155.085341,0.000142,2]
[351942981,1738854652703,-155.085341,0.000142,2]
[351942983,1738854652713,-155.085341,0.000142,2]
[351942985,1738854652723,-151.0,0.000142,2]
[351942987,1738854652733,-151.0,0.000142,2]
[351942988,1738854652743,-696.0,0.000142,5]
[351942990,1738854652751,-151.0,0.000142,2]
[351942992,1738854652760,-151.0,0.000142,2]
[351942994,1738854652769,-151.0,0.000142,2]
[351942996,1738854652780,-151.0,0.000142,2]
[351942998,1738854652789,-151.0,0.000142,2]
[351943000,1738854652799,-151.0,0.000142,2]
[351943002,1738854652809,-272.162947,0.000142,2]
[351943004,1738854652818,-272.162947,0.000142,2]
[351943006,1738854652827,-272.162947,0.000142,2]
[351943008,1738854652837,-272.162947,0.000142,2]
[351943010,1738854652847,-715.14659,0.000142,2]
[351943012,1738854652856,-715.14659,0.000142,2]
[351943014,1738854652865,-205.427974,0.000142,2]
[351943016,1738854652875,-205.427974,0.000142,2]
[351943018,1738854652885,-155.299083,0.000142,2]
[351943020,1738854652895,-151.0,0.000142,2]
[351943022,1738854652906,-155.299083,0.000142,2]
[351943024,1738854652915,-298.665351,0.000142,2]
[351943026,1738854652924,-372.436615,0.000142,2]
[351943028,1738854652934,-372.436615,0.000142,2]
[351943030,1738854652943,-600.855876,0.000142,2]
[351943032,1738854652953,-600.855876,0.000142,2]
[351943034,1738854652963,-151.0,0.000142,2]
[351943036,1738854652973,-151.0,0.000142,2]
[351943038,1738854652983,-380.665654,0.000142,2]
[351943040,1738854652993,-380.665654,0.000142,2]
[351943042,1738854653003,-518.744455,0.000142,2]
[351943044,1738854653012,-518.744455,0.000142,2]
[351943046,1738854653022,-151.0,0.000142,2]
[351943048,1738854653031,-151.0,0.000142,2]
[351943050,1738854653041,-151.0,0.000142,2]
[351943052,1738854653051,-151.0,0.000142,2]
[351943054,1738854653061,-154.103974,0.000142,2]
[351943056,1738854653070,-154.103974,0.000142,2]
[351943058,1738854653079,-151.0,0.000142,2]
[351943060,1738854653090,-1366.04506,0.000142,2]
[351943062,1738854653103,-1366.04506,0.000142,2]
[351943064,1738854653113,-425.0,0.000142,2]
[351943067,1738854653122,-1272.632916,0.000142,2]
[351943069,1738854653132,-425.0,0.000142,2]
[351943071,1738854653142,-1272.632916,0.000142,2]
[351943073,1738854653155,-151.0,0.000142,2]
[351943075,1738854653164,-1000.0,0.00014221,2]
[351943077,1738854653175,-250.0,0.00014228,2]
[351943079,1738854653184,-231.214,0.00014228,2]
[351943081,1738854653193,-153.049,0.00014228,2]
[351943083,1738854653202,-151.243,0.00014228,2]
[351943085,1738854653211,-1975.0,0.00014228,2]
[351943087,1738854653221,-541.988,0.00014228,2]
[351943089,1738854653230,-2297.0,0.00014228,2]
[351943091,1738854653240,-417.679014,0.00014245,2]
[351943093,1738854653249,-417.679014,0.00014245,2]
[351943095,1738854653259,-1439.609364,0.00014245,2]
[351943097,1738854653268,-1439.609364,0.00014245,2]
[351943099,1738854653278,-151.0,0.00014245,2]
[351943101,1738854653287,-151.0,0.00014245,2]
[351943103,1738854653297,-510.84903862,0.00014246,2]
[351943105,1738854653306,-500.0,0.00014246,2]
[351943107,1738854653315,-500.0,0.00014246,2]
[351943109,1738854653324,-500.0,0.00014246,2]
[351943111,1738854653334,-500.0,0.00014246,2]
[351943113,1738854653343,-151.0,0.00014246,2]
[351943115,1738854653353,-500.0,0.00014246,2]
[351943117,1738854653362,-838.05,0.00014246,2]
[351943119,1738854653371,-151.0,0.00014246,2]
[351943121,1738854653380,-151.0,0.00014246,2]
[351943123,1738854653390,-151.0,0.00014246,2]
[351943125,1738854653400,-151.0,0.00014246,2]
[351943127,1738854653410,-151.843507,0.00014246,2]
[351943129,1738854653419,-500.0,0.00014246,2]
[351943131,1738854653430,-586.54,0.00014246,2]
[351943133,1738854653440,-151.0,0.00014246,2]
[351943135,1738854653450,-500.0,0.00014246,2]
[351943137,1738854653462,-151.0,0.00014246,2]
[351943139,1738854653475,-152.837643,0.00014246,2]
[351943141,1738854653490,-201.1497123,0.00014246,2]
[351943143,1738854653499,-772.67,0.00014246,2]
[351943145,1738854653509,-500.0,0.00014246,2]
[351943147,1738854653518,-500.0,0.00014246,2]
[351943149,1738854653536,-585.64,0.00014246,2]
[351943151,1738854653547,-500.0,0.00014246,2]
[351943153,1738854653558,-500.0,0.00014246,2]
[351943155,1738854653567,-456.19208065,0.00014246,2]
[351943157,1738854653577,-500.0,0.00014246,2]
[351943159,1738854653586,-1080.04,0.00014246,2]
[351943161,1738854653595,-1350.69,0.00014246,2]
[351943163,1738854653604,-1389.25,0.00014246,2]
[351943165,1738854653613,-151.0,0.00014246,2]
[351943167,1738854653622,-500.0,0.00014246,2]
[351943170,1738854653633,-500.0,0.00014246,2]
[351943172,1738854653643,-577.72,0.00014246,2]
[351943173,1738854653655,-500.0,0.00014246,2]
[351943175,1738854653665,-500.0,0.00014246,2]
[351943177,1738854653674,-500.0,0.00014246,2]
[351943179,1738854653684,-151.0,0.00014246,2]
[351943181,1738854653693,-500.0,0.00014246,2]
[351943183,1738854653703,-500.0,0.00014246,2]
[351943185,1738854653712,-500.0,0.00014246,2]
[351943187,1738854653722,-500.0,0.00014246,2]
[351943189,1738854653732,-991.25,0.00014246,2]
[351943191,1738854653741,-500.0,0.00014246,2]
[351943193,1738854653750,-500.0,0.00014246,2]
[351943195,1738854653760,-500.0,0.00014246,2]
[351943197,1738854653770,-829.21,0.00014246,2]
[351943199,1738854653779,-256.32044102,0.00014246,2]
[351943201,1738854653789,-609.23449922,0.00014246,2]
[351943203,1738854653799,-500.0,0.00014246,2]
[351943205,1738854653808,-456.5895154,0.00014246,2]
[351943207,1738854653818,-500.0,0.00014246,2]
[351943209,1738854653827,-700.25,0.00014246,2]
[351943211,1738854653838,-613.27,0.00014246,2]
[351943213,1738854653847,-186.55205861,0.00014246,2]
[351943215,1738854653857,-642.25683987,0.00014246,2]
[351943217,1738854653866,-151.0,0.00014246,2]
[351943219,1738854653875,-500.0,0.00014246,2]
[351943221,1738854653885,-151.0,0.00014246,2]
[351943223,1738854653894,-500.0,0.00014246,2]
[351943225,1738854653904,-162.63639976,0.00014246,2]
[351943227,1738854653914,-500.0,0.00014246,2]
[351943229,1738854653923,-1349.21,0.00014246,2]
[351943231,1738854653932,-989.76,0.00014246,2]
[351943233,1738854653943,-155.085341,0.00014246,2]
[351943235,1738854653957,-155.085341,0.00014246,2]
[351943237,1738854653967,-1125.93,0.00014246,2]
[351943239,1738854653976,-500.0,0.00014246,2]
[351943241,1738854653986,-500.0,0.00014246,2]
[351943243,1738854653995,-500.0,0.00014246,2]
[351943245,1738854654005,-500.0,0.00014246,2]
[351943247,1738854654014,-179.93861544,0.00014246,2]
[351943249,1738854654023,-500.0,0.00014246,2]
[351943251,1738854654032,-500.0,0.00014246,2]
[351943253,1738854654042,-151.0,0.00014246,2]
[351943255,1738854654051,-500.0,0.00014246,2]
[351943257,1738854654060,-500.0,0.00014246,2]
[351943259,1738854654070,-151.0,0.00014246,2]
[351943261,1738854654079,-151.0,0.00014246,2]
[351943263,1738854654092,-151.0,0.00014246,2]
[351943265,1738854654101,-500.0,0.00014246,2]
[351943267,1738854654110,-1791.36,0.00014246,2]
[351943269,1738854654120,-717.16,0.00014246,2]
[351943271,1738854654130,-150.17,0.00014246,2]
[351943273,1738854654139,-272.162947,0.00014246,2]
[351943275,1738854654148,-1828.03,0.00014246,2]
[351943277,1738854654158,-272.162947,0.00014246,2]
[351943279,1738854654168,-500.0,0.00014246,2]
[351943281,1738854654178,-500.0,0.00014246,2]
[351943283,1738854654187,-500.0,0.00014246,2]
[351943285,1738854654197,-715.14659,0.00014246,2]
[351943287,1738854654207,-808.26,0.00014246,2]
[351943289,1738854654216,-715.14659,0.00014246,2]
[351943291,1738854654226,-500.0,0.00014246,2]
[351943293,1738854654236,-715.14659,0.00014246,2]
[351943295,1738854654246,-715.14659,0.00014246,2]
[351943297,1738854654255,-500.0,0.00014246,2]
[351943299,1738854654266,-205.427974,0.00014246,2]
[351943301,1738854654275,-205.427974,0.00014246,2]
[351943303,1738854654284,-500.0,0.00014246,2]
[351943305,1738854654294,-205.427974,0.00014246,2]
[351943307,1738854654303,-205.427974,0.00014246,2]
[351943309,1738854654313,-500.0,0.00014246,2]
[351943311,1738854654323,-155.299083,0.00014246,2]
[351943313,1738854654332,-155.299083,0.00014246,2]
[351943315,1738854654341,-500.0,0.00014246,2]
[351943317,1738854654350,-151.0,0.00014246,2]
[351943319,1738854654359,-151.0,0.00014246,2]
[351943321,1738854654369,-500.0,0.00014246,2]
[351943323,1738854654379,-893.39,0.00014246,2]
[351943325,1738854654388,-155.299083,0.00014246,2]
[351943327,1738854654400,-155.299083,0.00014246,2]
[351943329,1738854654409,-1068.84,0.00014246,2]
[351943331,1738854654419,-500.0,0.00014246,2]
[351943333,1738854654428,-1349.54,0.00014246,2]
[351943335,1738854654437,-2018.11,0.00014246,2]
[351943337,1738854654447,-500.0,0.00014246,2]
[351943339,1738854654457,-628.49,0.00014246,2]
[351943341,1738854654467,-500.0,0.00014246,2]
[351943343,1738854654476,-899.65,0.00014246,2]
[351943345,1738854654486,-2297.16,0.00014246,2]
[351943347,1738854654496,-999.63,0.00014246,2]
[351943349,1738854654505,-1230.78,0.00014246,2]
[351943351,1738854654515,-500.0,0.00014246,2]
[351943353,1738854654524,-500.0,0.00014246,2]
[351943355,1738854654533,-1633.44,0.00014246,2]
[351943357,1738854654543,-764.41,0.00014246,2]
[351943359,1738854654553,-931.37,0.00014246,2]
[351943361,1738854654562,-372.436615,0.00014246,2]
[351943363,1738854654572,-372.436615,0.00014246,2]
[351943365,1738854654581,-500.0,0.00014246,2]
[351943367,1738854654591,-1366.33,0.00014246,2]
[351943369,1738854654601,-372.436615,0.00014246,2]
[351943371,1738854654610,-372.436615,0.00014246,2]
[351943373,1738854654620,-500.0,0.00014246,2]
[351943375,1738854654629,-1657.2,0.00014246,2]
[351943377,1738854654638,-500.0,0.00014246,2]
[351943379,1738854654648,-500.0,0.00014246,2]
[351943381,1738854654662,-600.855876,0.00014246,2]
[351943383,1738854654671,-600.855876,0.00014246,2]
[351943385,1738854654680,-3106.39859932,0.00014246,2]
[351943472,1738854655546,-500.0,0.00013698,2]
[351943474,1738854655556,-49.03653221,0.00013698,2]
[351943475,1738854655568,-450.96346779,0.00013698,2]
[351943476,1738854655578,-500.0,0.00013698,2]
[351943477,1738854655590,-500.0,0.00013835,2]
[351943478,1738854655599,-500.0,0.00013835,2]
[351943479,1738854655609,-4001.51,0.00013972,2]
[351943480,1738854655619,-397.813,0.00014052,2]
[351943481,1738854655628,-358.51096841,0.00014109,5]
[351943482,1738854655639,-9366.22682832,0.00014109,5]
[351943483,1738854655652,-862.66981828,0.00014109,5]
[351943484,1738854655672,-82326.0746528,0.00014109,5]
[351943486,1738854655682,-4001.51,0.00014109,2]
[351943487,1738854655692,-755.48097761,0.00014198,2]
[351943488,1738854655702,-1985.95140068,0.00014246,2]
[351943489,1738854655711,-600.855876,0.00014246,2]
[351943490,1738854655721,-600.855876,0.00014246,2]
[351943491,1738854655731,-3780.87,0.00014246,2]
[351943492,1738854655741,-500.0,0.00014246,2]
[351943493,1738854655750,-500.0,0.00014246,2]
[351943494,1738854655761,-501.11,0.00014246,2]
[351943495,1738854655771,-151.0,0.00014246,2]
[351943496,1738854655781,-151.0,0.00014246,2]
[351943497,1738854655791,-151.0,0.00014246,2]
[351943498,1738854655800,-550.0,0.00014246,2]
[351943499,1738854655810,-8254.75,0.00014246,2]
[351943500,1738854655819,-380.665654,0.00014246,2]
[351943501,1738854655828,-380.665654,0.00014246,2]
[351943502,1738854655838,-1338.85,0.00014246,2]
[351943503,1738854655847,-500.0,0.00014246,2]
[351943504,1738854655856,-380.665654,0.00014246,2]
[351943505,1738854655866,-380.665654,0.00014246,2]
[351943506,1738854655876,-500.0,0.00014246,2]
[351943507,1738854655886,-500.0,0.00014246,2]
[351943508,1738854655895,-500.91297112,0.00014246,2]
[351943509,1738854655906,-2034.42,0.00014246,2]
[351943510,1738854655916,-500.0,0.00014246,2]
[351943511,1738854655927,-500.0,0.00014246,2]
[351943512,1738854655937,-1555.23,0.00014246,2]
[351943514,1738854655947,-518.744455,0.00014246,2]
[351943516,1738854655957,-518.744455,0.00014246,2]
[351943518,1738854655967,-500.0,0.00014246,2]
[351943520,1738854655976,-518.744455,0.00014246,2]
[351943522,1738854655986,-518.744455,0.00014246,2]
[351943524,1738854655996,-16589.37,0.00014246,2]
[351943526,1738854656005,-740.85,0.00014246,2]
[351943528,1738854656015,-151.0,0.00014246,2]
[351943529,1738854656024,-151.0,0.00014246,2]
[351943530,1738854656034,-500.0,0.00014246,2]
[351943532,1738854656044,-500.0,0.00014246,2]
[351943534,1738854656053,-500.0,0.00014246,2]
[351943536,1738854656063,-1444.07,0.00014246,2]
[351943537,1738854656072,-500.0,0.00014246,2]
[351943538,1738854656083,-500.0,0.00014246,2]
[351943539,1738854656097,-1574.08,0.00014246,2]
[351943540,1738854656107,-164.26142624,0.00014246,2]
[351943541,1738854656117,-611.95,0.00014246,2]
[351943542,1738854656127,-204.72426276,0.00014246,2]
[351943543,1738854656137,-160.4271749,0.00014246,2]
[351943544,1738854656146,-500.0,0.00014246,2]
[351943545,1738854656159,-500.0,0.00014246,2]
[351943546,1738854656169,-166.7456672,0.00014246,2]
[351943547,1738854656180,-1274.62,0.00014246,2]
[351943548,1738854656190,-150.17,0.00014246,2]
[351943549,1738854656200,-500.0,0.00014246,2]
[351943550,1738854656210,-1475.24,0.00014246,2]
[351943551,1738854656221,-151.0,0.00014246,2]
[351943552,1738854656231,-151.0,0.00014246,2]
[351943553,1738854656241,-500.0,0.00014246,2]
[351943554,1738854656251,-5160.45,0.00014246,2]
[351943555,1738854656260,-150.17,0.00014246,2]
[351943556,1738854656270,-150.17,0.00014246,2]
[351943557,1738854656280,-151.0,0.00014246,2]
[351943558,1738854656289,-151.0,0.00014246,2]
[351943559,1738854656298,-500.0,0.00014246,2]
[351943560,1738854656308,-500.0,0.00014246,2]
[351943561,1738854656318,-573.51,0.00014246,2]
[351943562,1738854656327,-42643.98,0.00014246,2]
[351943563,1738854656336,-500.0,0.00014246,2]
[351943564,1738854656346,-500.0,0.00014246,2]
[351943565,1738854656355,-150.17,0.00014246,2]
[351943566,1738854656366,-186.08552708,0.00014246,2]
[351943567,1738854656376,-150.17,0.00014246,2]
[351943568,1738854656385,-500.0,0.00014246,2]
[351943569,1738854656395,-2709.24,0.00014246,2]
[351943570,1738854656407,-500.0,0.00014246,2]
[351943571,1738854656417,-244.136295,0.00014246,2]
[351943572,1738854656427,-500.0,0.00014246,2]
[351943573,1738854656436,-823.0,0.00014246,2]
[351943574,1738854656445,-648.23243032,0.00014246,2]
[351943575,1738854656455,-500.0,0.00014246,2]
[351943576,1738854656464,-2451.5,0.00014246,2]
[351943577,1738854656474,-542.0,0.00014246,2]
[351943578,1738854656483,-500.0,0.00014246,2]
[351943579,1738854656493,-2836.32,0.00014246,2]
[351943580,1738854656502,-500.0,0.00014246,2]
[351943581,1738854656511,-150.17,0.00014246,2]
[351943582,1738854656521,-1628.67,0.00014246,2]
[351943583,1738854656530,-154.103974,0.00014246,2]
[351943584,1738854656540,-154.103974,0.00014246,2]
[351943585,1738854656549,-154.103974,0.00014246,2]
[351943586,1738854656557,-154.103974,0.00014246,2]
[351943587,1738854656567,-1765.96,0.00014246,2]
[351943588,1738854656577,-1226.52,0.00014246,2]
[351943589,1738854656587,-500.0,0.00014246,2]
[351943590,1738854656597,-964.09,0.00014246,2]
[351943591,1738854656607,-21108.71,0.00014246,2]
[351943592,1738854656616,-151.0,0.00014246,2]
[351943593,1738854656626,-500.0,0.00014246,2]
[351943594,1738854656636,-1649.84,0.00014246,2]
[351943595,1738854656646,-2006.25,0.00014246,2]
[351943596,1738854656662,-492.99047153,0.00014246,2]
[351943597,1738854656672,-2776.67,0.00014246,2]
[351943598,1738854656682,-500.0,0.00014246,2]
[351943599,1738854656693,-500.0,0.00014246,2]
[351943600,1738854656702,-1840.2,0.00014246,2]
[351943601,1738854656712,-875.33,0.00014246,2]
[351943602,1738854656722,-1366.04506,0.00014246,2]
[351943603,1738854656732,-3874.25,0.00014246,2]
[351943604,1738854656742,-1366.04506,0.00014246,2]
[351943605,1738854656752,-500.0,0.00014246,2]
[351943606,1738854656762,-500.0,0.00014246,2]
[351943607,1738854656771,-748.25,0.00014246,2]
[351943608,1738854656780,-1366.04506,0.00014246,2]
[351943609,1738854656789,-1366.04506,0.00014246,2]
[351943610,1738854656799,-846.18,0.00014246,2]
[351943611,1738854656808,-4316.7,0.00014246,2]
[351943612,1738854656817,-425.0,0.00014246,2]
[351943613,1738854656826,-425.0,0.00014246,2]
[351943614,1738854656836,-1272.632916,0.00014246,2]
[351943615,1738854656846,-1272.632916,0.00014246,2]
[351943616,1738854656856,-425.0,0.00014246,2]
[351943617,1738854656866,-425.0,0.00014246,2]
[351943618,1738854656876,-500.0,0.00014246,2]
[351943619,1738854656886,-500.0,0.00014246,2]
[351943620,1738854656897,-1073.95,0.00014246,2]
[351943621,1738854656912,-1272.632916,0.00014246,2]
[351943622,1738854656923,-1272.632916,0.00014246,2]
[351943623,1738854656933,-151.0,0.00014246,2]
[351943624,1738854656943,-151.0,0.00014246,2]
[351943625,1738854656953,-2517.82,0.00014246,2]
[351943626,1738854656963,-1059.49,0.00014246,2]
[351943627,1738854656973,-10938.62,0.00014246,2]
[351943628,1738854656984,-572.16,0.00014246,2]
[351943629,1738854656993,-500.0,0.00014246,2]
[351943630,1738854657003,-624.38,0.00014246,2]
[351943631,1738854657013,-500.0,0.00014246,2]
[351943632,1738854657022,-500.0,0.00014246,2]
[351943633,1738854657032,-1694.57,0.00014246,2]
[351943634,1738854657042,-2197.75,0.00014246,2]
[351943635,1738854657053,-500.0,0.00014246,2]
[351943636,1738854657063,-500.0,0.00014246,2]
[351943637,1738854657072,-500.0,0.00014246,2]
[351943638,1738854657082,-4663.5,0.00014246,2]
[351943639,1738854657094,-509.11,0.00014246,2]
[351943640,1738854657104,-500.0,0.00014246,2]
[351943641,1738854657113,-4001.51,0.00014246,2]
[351943642,1738854657123,-79000.0,0.00014247,2]
[351943643,1738854657256,-166.66666667,0.00014247,2]
[351943644,1738854657267,-166.66666666,0.00014247,2]
[351943645,1738854657277,-276.9926375,0.00014247,2]
[351943646,1738854657287,-417.679014,0.00014247,2]
[351943647,1738854657299,-1439.609364,0.00014247,2]
[351943648,1738854657308,-1439.609364,0.00014247,2]
[351943649,1738854657318,-151.0,0.00014247,2]
[351943650,1738854657328,-237.282455,0.00014247,2]
[351943651,1738854657338,-151.0,0.00014247,2]
[351943652,1738854657358,-151.0,0.00014247,2]
[351943653,1738854657374,-151.0,0.00014247,2]
[351943654,1738854657384,-151.0,0.00014247,2]